bitfinex/quotes_SOLUSD_20251207
["timestamp","ask_amount","ask_price","bid_price","bid_amount"]
[1765117525932,10.5,128.62,128.38,16.308864]
[1765117525933,75.0,128.58,128.38,16.308864]
[1765117526151,75.0,128.6,128.44,16.308864]
[1765117526440,75.0,128.6,128.41,8.80994492]
[1765117526441,75.0,128.6,128.48,16.308864]
[1765117526603,0.66,128.62,128.48,16.308864]
[1765117526806,79.03174302,128.68,128.48,16.308864]
[1765117526998,0.66,128.67,128.48,16.308864]
[1765117527202,0.66,128.67,128.49,8.80994492]
[1765117527402,75.0,128.63,128.45,27.2479564]
[1765117527700,75.66,128.67,128.46,8.80994492]
[1765117527901,75.0,128.65,128.48,16.308864]
[1765117528218,8.80994492,128.6,128.48,16.308864]
[1765117528428,75.0,128.65,128.52,16.308864]
[1765117528737,10.6,128.7,128.52,16.308864]
[1765117529035,0.66,128.72,128.52,16.308864]
[1765117529036,75.0,128.76,128.52,26.928864]
[1765117529195,75.0,128.81,128.6,16.308864]
[1765117529394,0.66,128.88,128.64,16.308864]
[1765117529395,75.0,128.87,128.64,16.308864]
[1765117529600,0.66,128.88,128.77,16.308864]
[1765117529905,150.0,128.95,128.77,16.308864]
[1765117530223,0.66,128.91,128.68,16.308864]
[1765117530403,0.66,128.91,128.65,10.62]
[1765117530404,75.66,128.91,128.79,16.308864]
[1765117530612,0.66,128.91,128.79,16.308864]
[1765117530804,75.0,128.96,128.79,16.308864]
[1765117531004,16.968864,128.93,128.79,16.308864]
[1765117531224,0.66,128.93,128.79,16.308864]
[1765117531420,75.0,128.96,128.76,7.76638707]
[1765117531421,1.0,128.9,128.76,7.76638707]
[1765117531599,16.308864,128.91,128.76,7.76638707]
[1765117531803,16.308864,128.84,128.56,8.80994492]
[1765117532002,16.308864,128.76,128.57,32.78246282]
[1765117532201,16.308864,128.76,128.66,19.43032092]
[1765117532403,16.308864,128.76,128.57,21.22123826]
[1765117532404,16.308864,128.73,128.57,21.22123826]
[1765117532625,8.80994492,128.74,128.58,66.10670398]
[1765117532626,16.308864,128.74,128.58,66.10670398]
[1765117532837,0.66,128.73,128.58,27.22040752]
[1765117533022,16.308864,128.69,128.58,27.22040752]
[1765117533222,16.308864,128.69,128.58,7.77725929]
[1765117533430,0.66,128.68,128.58,7.77725929]
[1765117533616,16.308864,128.69,128.58,7.77725929]
[1765117533804,16.308864,128.71,128.58,27.22040752]
[1765117534040,15.808864,128.63,128.4,75.0]
[1765117534206,8.80994492,128.61,128.52,7.78045253]
[1765117534407,8.80994492,128.61,128.41,11.56122456]
[1765117534408,0.66,128.66,128.44,23.66327872]
[1765117534706,0.66,128.65,128.42,46.72169443]
[1765117534910,75.0,128.6,128.42,27.25432175]
[1765117535215,9.46994492,128.59,128.42,27.25432175]
[1765117535438,8.80994492,128.57,128.42,27.25432175]
[1765117536035,75.0,128.55,128.42,7.78694907]
[1765117536242,16.968864,128.56,128.42,7.55035072]
[1765117536535,0.66,128.55,128.37,66.21484769]
[1765117536746,8.80994492,128.5,128.37,66.21484769]
[1765117536938,16.308864,128.51,128.37,66.21484769]
[1765117537103,1.0,128.62,128.37,66.21484769]
[1765117537104,0.66,128.5,128.37,66.21484769]
[1765117537441,16.968864,128.5,128.37,27.26493728]
[1765117537611,16.308864,128.44,128.37,27.26493728]
[1765117537809,9.46994492,128.49,128.37,27.26493728]
[1765117538019,16.308864,128.46,128.37,27.26493728]
[1765117538219,16.308864,128.42,128.36,7.79036541]
[1765117538418,16.308864,128.42,128.28,27.28406609]
[1765117538622,0.66,128.41,128.28,27.28406609]
[1765117539015,8.80994492,128.4,128.28,27.28406609]
[1765117539217,16.308864,128.37,128.28,27.28406609]
[1765117539733,0.66,128.36,128.28,27.28406609]
[1765117539937,0.66,128.39,128.28,27.28406609]
[1765117540228,16.968864,128.39,128.28,27.28406609]
[1765117540428,8.80994492,128.47,128.32,16.308864]
[1765117540630,0.66,128.47,128.33,8.80994492]
[1765117540834,10.66,128.57,128.33,8.80994492]
[1765117540835,4.06679823,128.51,128.37,8.80994492]
[1765117541016,0.66,128.5,128.37,8.80994492]
[1765117541216,0.66,128.56,128.37,8.80994492]
[1765117541518,0.66,128.56,128.41,8.80994492]
[1765117542030,0.66,128.6,128.49,8.80994492]
[1765117542228,150.0,128.7,128.49,8.80994492]
[1765117542539,0.66,128.69,128.51,25.11880892]
[1765117542715,0.66,128.78,128.69,16.308864]
[1765117542916,0.66,128.82,128.7,8.80994492]
[1765117543215,75.0,128.8,128.57,8.80994492]
[1765117543451,76.66,128.82,128.51,16.8]
[1765117543452,75.0,128.74,128.51,16.8]
[1765117543650,75.0,128.74,128.54,8.80994492]
[1765117543853,75.0,128.74,128.52,8.80994492]
[1765117543854,16.308864,128.69,128.52,8.80994492]
[1765117544037,16.308864,128.59,128.5,7.78210116]
[1765117544230,16.308864,128.59,128.47,19.4593232]
[1765117544431,0.66,128.58,128.44,8.80994492]
[1765117544633,0.66,128.58,128.43,27.25219963]
[1765117544933,0.66,128.62,128.43,27.25219963]
[1765117545139,0.66,128.61,128.43,27.25219963]
[1765117545339,16.308864,128.57,128.43,27.25219963]
[1765117545654,16.308864,128.53,128.43,7.78634275]
[1765117546025,0.66,128.52,128.43,27.25219963]
[1765117546432,0.66,128.57,128.44,8.80994492]
[1765117546734,0.66,128.62,128.46,8.80994492]
[1765117546931,0.66,128.61,128.45,10.66]
[1765117547335,0.66,128.61,128.46,8.80994492]
[1765117547523,16.308864,128.58,128.46,8.80994492]
[1765117547728,16.308864,128.58,128.43,27.25219963]
[1765117547729,25.11880892,128.57,128.43,27.25219963]
[1765117548033,16.968864,128.57,128.43,27.25219963]
[1765117548233,0.66,128.56,128.44,8.80994492]
[1765117548438,16.5841811,128.63,128.45,7.7851304]
[1765117548645,16.5841811,128.63,128.45,27.2479564]
[1765117548844,16.308864,128.6,128.46,8.80994492]
[1765117549339,16.308864,128.56,128.46,8.80994492]
[1765117549554,75.0,128.76,128.49,8.80994492]
[1765117549754,0.66,128.82,128.6,16.308864]
[1765117549959,0.66,128.82,128.61,94.48994492]
[1765117550161,1.0,128.9,128.69,8.80994492]
[1765117550162,0.66,128.86,128.69,8.80994492]
[1765117550458,0.66,128.86,128.71,8.80994492]
[1765117550833,27.82154028,128.86,128.7,7.77000777]
[1765117551035,76.0,128.85,128.63,19.43523433]
[1765117551340,75.0,128.84,128.63,16.308864]
[1765117551559,0.71,128.84,128.69,7.77051456]
[1765117551733,0.71,128.83,128.69,7.77051456]
[1765117552357,8.47234537,128.83,128.69,27.19704342]
[1765117552536,0.71,128.83,128.69,27.19704342]
[1765117552736,0.71,128.82,128.69,27.19704342]
[1765117553250,16.308864,128.81,128.69,27.19704342]
[1765117553572,0.71,128.86,128.7,8.80994492]
[1765117553864,0.71,128.85,128.74,8.80994492]
[1765117554230,0.71,128.89,128.74,8.80994492]
[1765117554450,0.71,128.89,128.76,8.80994492]
[1765117555545,0.71,128.93,128.76,8.80994492]
[1765117555736,0.71,128.93,128.76,25.11880892]
[1765117556352,0.71,128.93,128.79,16.308864]
[1765117556556,0.71,128.93,128.8,27.17391303]
[1765117556789,8.80994492,128.92,128.8,27.17391303]
[1765117556937,0.71,128.93,128.8,27.17391303]
[1765117557443,0.71,128.93,128.81,8.80994492]
[1765117558370,17.018864,128.93,128.81,8.80994492]
[1765117558661,17.018864,128.93,128.82,27.16969414]
[1765117558662,0.71,128.93,128.82,27.16969414]
[1765117558861,17.018864,128.93,128.82,27.16969414]
[1765117559061,16.308864,128.92,128.82,27.16969414]
[1765117559445,16.308864,128.92,128.82,7.76276975]
[1765117559446,0.71,128.91,128.82,7.76276975]
[1765117559636,16.308864,128.9,128.82,7.76276975]
[1765117559957,16.308864,128.86,128.76,7.76579379]
[1765117560157,8.80994492,128.85,128.72,19.42122516]
[1765117560466,16.308864,128.82,128.72,19.42122516]
[1765117560661,16.308864,128.82,128.7,27.19502719]
[1765117560864,16.308864,128.77,128.69,7.7705565]
[1765117561073,16.308864,128.77,128.56,0.1]
[1765117561074,8.80994492,128.76,128.56,0.1]
[1765117561268,0.71,128.76,128.66,7.77235291]
[1765117561564,16.308864,128.79,128.63,7.77423212]
[1765117561565,16.308864,128.71,128.63,7.77423212]
[1765117561785,16.308864,128.71,128.64,7.7735407]
[1765117562074,0.71,128.7,128.63,7.77406957]
[1765117562243,8.80994492,128.69,128.56,0.1]
[1765117562448,16.308864,128.62,128.56,0.1]
[1765117562642,8.80994492,128.61,128.56,0.1]
[1765117562951,0.71,128.61,128.56,0.1]
[1765117563151,16.308864,128.64,128.56,0.1]
[1765117563355,0.71,128.65,128.56,0.1]
[1765117563658,16.308864,128.69,128.59,8.80994492]
[1765117563659,0.71,128.69,128.59,8.80994492]
[1765117563864,75.0,128.8,128.59,8.80994492]
[1765117563865,0.71,128.73,128.59,8.80994492]
[1765117564062,0.71,128.79,128.63,8.80994492]
[1765117564245,75.0,128.75,128.56,0.1]
[1765117564442,24.08032296,128.68,128.56,0.1]
[1765117564642,8.80994492,128.65,128.56,0.1]
[1765117564873,16.308864,128.64,128.56,0.1]
[1765117565062,17.018864,128.64,128.56,0.1]
[1765117565373,0.71,128.72,128.56,0.1]
[1765117565547,8.80994492,128.75,128.59,16.308864]
[1765117565744,0.71,128.71,128.59,16.308864]
[1765117565964,0.71,128.71,128.56,0.1]
[1765117566158,0.71,128.71,128.56,8.90994492]
[1765117566363,0.71,128.71,128.56,0.1]
[1765117566563,8.80994492,128.69,128.56,0.1]
[1765117566749,16.308864,128.62,128.56,0.1]
[1765117567190,0.71,128.61,128.56,0.1]
[1765117567493,0.71,128.61,128.49,7.78231558]
[1765117567660,0.71,128.61,128.42,0.11]
[1765117567661,16.308864,128.57,128.45,19.4618018]
[1765117567846,8.80994492,128.56,128.45,19.4618018]
[1765117568067,0.71,128.56,128.42,38.93211105]
[1765117568264,150.0,128.66,128.53,7.78021183]
[1765117568489,8.80994492,128.67,128.5,16.59204608]
[1765117568696,8.80994492,128.67,128.5,27.23735407]
[1765117568899,16.308864,128.6,128.5,7.78210116]
[1765117569368,17.018864,128.59,128.5,7.78210116]
[1765117569576,17.018864,128.59,128.46,19.46021527]
[1765117569797,0.71,128.58,128.44,0.11]
[1765117570003,16.308864,128.54,128.43,19.46462006]
[1765117570199,16.308864,128.54,128.43,0.11]
[1765117570398,16.308864,128.56,128.49,27.23940034]
[1765117570596,17.018864,128.58,128.49,19.45676706]
[1765117570905,0.71,128.67,128.54,8.80994492]
[1765117571402,0.71,128.7,128.58,8.80994492]
[1765117571688,0.71,128.7,128.53,8.80994492]
[1765117571890,75.71,128.7,128.53,8.80994492]
[1765117572092,75.71,128.7,128.57,8.80994492]
[1765117572093,0.71,128.7,128.57,8.80994492]
[1765117572390,0.71,128.69,128.54,0.11]
[1765117572568,8.80994492,128.68,128.55,27.22676001]
[1765117572899,0.71,128.69,128.56,8.80994492]
[1765117573078,34.89543139,128.78,128.63,8.80994492]
[1765117573280,35.60543139,128.78,128.66,16.308864]
[1765117573480,34.89543139,128.78,128.67,8.80994492]
[1765117573681,34.89543139,128.78,128.68,0.11]
[1765117573880,0.71,128.85,128.71,8.80994492]
[1765117574194,33.55992914,128.93,128.68,0.11]
[1765117574195,0.71,128.9,128.75,8.80994492]
[1765117574593,0.71,128.9,128.78,8.80994492]
[1765117574989,17.018864,128.9,128.78,8.80994492]
[1765117575300,8.46816369,128.9,128.76,7.76624377]
[1765117575497,0.71,128.89,128.76,7.76624377]
[1765117575679,8.80994492,128.88,128.76,7.76624377]
[1765117575888,0.71,128.89,128.77,8.80994492]
[1765117576083,0.71,128.88,128.74,7.76746554]
[1765117576392,16.308864,128.78,128.71,7.76904028]
[1765117576602,75.0,128.9,128.66,27.20348204]
[1765117576804,16.308864,128.83,128.7,8.80994492]
[1765117576977,8.80994492,128.82,128.66,27.20348204]
[1765117577183,25.82880892,128.82,128.67,8.80994492]
[1765117577382,25.82880892,128.82,128.63,19.43434497]
[1765117577383,16.308864,128.75,128.63,19.43434497]
[1765117577874,0.71,128.74,128.65,7.77301142]
[1765117578298,0.71,128.74,128.65,27.2055804]
[1765117578484,17.018864,128.78,128.67,7.77181938]
[1765117578671,0.71,128.77,128.67,7.77181938]
[1765117578879,0.71,128.77,128.68,8.80994492]
[1765117579287,75.0,128.93,128.72,8.80994492]
[1765117579483,0.71,128.85,128.72,8.80994492]
[1765117579686,0.71,128.85,128.74,8.80994492]
[1765117579906,150.0,128.95,128.74,8.80994492]
[1765117580204,0.71,128.95,128.78,8.80994492]
[1765117580409,0.71,128.94,128.82,8.80994492]
[1765117580606,0.71,128.94,128.83,27.16758518]
[1765117580904,0.71,128.94,128.84,8.80994492]
[1765117581084,0.71,128.94,128.83,27.16758518]
[1765117581286,8.46562181,128.94,128.82,7.7627554]
[1765117581514,8.80994492,128.93,128.81,7.7632335]
[1765117581799,8.80994492,128.93,128.82,7.7626306]
[1765117581800,16.308864,128.9,128.82,7.7626306]
[1765117582007,0.66,128.92,128.76,8.91994492]
[1765117582188,8.80994492,128.91,128.76,8.91994492]
[1765117582387,0.66,128.92,128.76,8.91994492]
[1765117582698,23.43325994,129.0,128.81,16.308864]
[1765117582910,79.01447379,129.02,128.86,8.80994492]
[1765117582911,0.2,128.98,128.86,8.80994492]
[1765117583098,0.2,128.98,128.9,8.80994492]
[1765117583516,0.2,128.98,128.91,0.11]
[1765117583888,0.2,128.98,128.9,8.80994492]
[1765117584098,0.2,128.98,128.91,0.11]
[1765117584484,0.2,128.98,128.9,8.80994492]
[1765117584720,0.2,128.98,128.92,8.80994492]
[1765117585398,0.66,129.07,128.93,0.11]
[1765117585597,0.66,129.06,128.95,16.308864]
[1765117585807,0.86,129.05,128.95,8.80994492]
[1765117585991,0.66,129.04,128.95,8.80994492]
[1765117586195,16.968864,129.04,128.92,25.11880892]
[1765117586615,0.2,129.05,128.93,65.92724733]
[1765117586921,0.86,129.05,128.94,8.80994492]
[1765117587099,16.308864,129.02,128.93,7.75614674]
[1765117587315,0.5,129.01,128.93,7.75614674]
[1765117587507,1.16,129.01,128.93,7.75614674]
[1765117587702,16.308864,129.0,128.91,7.7570471]
[1765117587902,0.5,128.99,128.86,10.42]
[1765117588102,16.308864,128.95,128.8,10.42]
[1765117588300,0.5,128.94,128.84,7.76100725]
[1765117588525,16.308864,128.9,128.81,7.7633724]
[1765117588699,0.5,128.89,128.81,27.17180342]
[1765117588900,0.66,128.91,128.81,27.17180342]
[1765117589318,0.66,128.91,128.82,8.80994492]
[1765117589793,0.5,128.93,128.82,25.11880892]
[1765117589995,0.66,128.96,128.86,8.80994492]
[1765117590313,0.5,129.02,128.86,8.80994492]
[1765117590514,0.66,128.99,128.86,8.80994492]
[1765117590813,16.808864,128.98,128.88,8.80994492]
[1765117591008,0.5,128.98,128.88,8.80994492]
[1765117591192,0.66,128.98,128.88,8.80994492]
[1765117591925,1.16,129.02,128.91,16.308864]
[1765117592219,25.87095683,129.05,128.87,65.95794209]
[1765117592220,0.2,129.05,128.96,8.80994492]
[1765117592519,0.86,129.05,128.96,8.80994492]
[1765117592701,0.2,129.05,128.98,8.80994492]
[1765117593399,1.16,129.04,128.97,27.13809413]
[1765117593727,16.308864,129.02,128.91,8.80994492]
[1765117594024,0.5,129.01,128.96,7.75413396]
[1765117594245,0.2,129.05,128.96,7.75413396]
[1765117594246,0.2,129.05,128.97,8.80994492]
[1765117594616,0.2,129.05,128.98,27.13599007]
[1765117594920,0.2,129.05,128.98,65.90169017]
[1765117595118,0.2,129.05,128.99,8.80994492]
[1765117595309,0.66,129.04,128.98,27.13599007]
[1765117595717,0.5,129.03,128.98,7.75314002]
[1765117595917,0.5,129.03,128.97,7.75359859]
[1765117596095,0.66,129.02,128.97,7.75359859]
[1765117596298,0.5,129.03,128.97,27.13795154]
[1765117596603,0.66,129.03,128.97,27.13795154]
[1765117596804,0.66,129.03,128.94,74.73207923]
[1765117597000,0.2,129.05,128.98,8.80994492]
[1765117597429,1e-08,129.05,128.98,8.80994492]
[1765117598827,1e-08,129.05,129.0,8.80994492]
[1765117599346,1e-08,129.05,129.0,25.11880892]
[1765117599703,1e-08,129.09,129.04,8.80994492]
[1765117600417,0.66,129.08,128.99,65.89658112]
[1765117600734,16.308864,129.06,128.9,7.7579519]
[1765117600901,0.5,129.05,128.9,27.15283165]
[1765117601106,1.16,129.05,128.93,16.308864]
[1765117601313,1.16,129.05,128.9,27.15283165]
[1765117601535,0.66,129.04,128.9,27.15283165]
[1765117601750,16.308864,129.0,128.9,27.15283165]
[1765117602228,0.66,128.99,128.9,27.15283165]
[1765117602740,0.66,128.99,128.86,27.16126028]
[1765117602910,16.308864,128.95,128.86,27.16126028]
[1765117603107,8.80994492,128.94,128.86,7.76036008]
[1765117603307,0.66,128.94,128.86,7.76036008]
[1765117603524,0.66,128.93,128.86,7.76036008]
[1765117603745,0.66,128.93,128.86,27.16126028]
[1765117603913,0.66,128.99,128.87,8.80994492]
[1765117604222,0.66,128.98,128.87,8.80994492]
[1765117604908,16.968864,128.98,128.88,27.1570453]
[1765117605317,0.66,128.97,128.88,27.1570453]
[1765117605841,0.66,128.97,128.89,8.80994492]
[1765117606143,16.308864,129.04,128.92,16.308864]
[1765117606144,0.5,129.03,128.92,16.308864]
[1765117606343,1e-08,129.09,128.92,16.308864]
[1765117606344,0.66,129.08,128.93,8.80994492]
[1765117606545,0.66,129.08,128.97,8.80994492]
[1765117607044,0.5,129.07,128.98,65.90169017]
[1765117607243,0.66,129.08,128.99,8.80994492]
[1765117607551,0.5,129.07,128.98,27.13599007]
[1765117607722,0.66,129.08,128.99,8.80994492]
[1765117607921,1e-08,129.09,129.01,8.80994492]
[1765117608216,0.67000001,129.09,129.0,16.308864]
[1765117608419,0.67000001,129.09,128.98,65.90169017]
[1765117608632,0.5,129.08,128.98,65.90169017]
[1765117609136,0.67,129.07,128.99,8.80994492]
[1765117609369,0.67,129.07,128.98,65.90169017]
[1765117609826,0.67,129.07,128.99,8.80994492]
[1765117610149,0.67,129.07,128.98,65.90169017]
[1765117610515,0.67,129.07,128.99,8.80994492]
[1765117610940,0.67,129.07,129.0,27.13178294]
[1765117611150,0.67,129.07,129.0,65.89147286]
[1765117611354,1e-08,129.09,129.01,8.80994492]
[1765117612131,1e-08,129.09,129.04,16.308864]
[1765117612732,1e-08,129.09,129.03,10.2]
[1765117612922,1e-08,129.09,129.05,65.86594342]
[1765117613127,1e-08,129.09,129.05,27.12127082]
[1765117613323,0.72000001,129.09,129.05,27.12127082]
[1765117613550,17.02886401,129.09,128.82,26.1786451]
[1765117613761,0.5,129.08,128.9,16.308864]
[1765117614061,1.22,129.08,128.96,16.308864]
[1765117614233,1.22,129.08,129.03,7.74965084]
[1765117614429,9.52994492,129.07,128.96,38.77107846]
[1765117614742,0.5,129.06,128.96,38.77107846]
[1765117614948,1.22,129.06,128.96,38.77107846]
[1765117615555,0.5,129.05,128.97,8.80994492]
[1765117615743,0.50000001,129.09,128.97,25.11880892]
[1765117615927,0.72,129.08,128.97,25.11880892]
[1765117616542,0.22,129.08,128.99,8.80994492]
[1765117616734,1e-08,129.09,129.01,8.80994492]
[1765117616939,1e-08,129.09,129.02,65.88125869]
[1765117618530,1e-08,129.09,129.03,9.30994492]
[1765117618756,1e-08,129.09,129.03,25.61880892]
[1765117619055,1e-08,129.09,129.06,27.11916937]
[1765117620163,1e-08,129.09,129.07,0.5]
[1765117620334,1e-08,129.09,129.06,54.04803337]
[1765117620534,1e-08,129.09,129.06,37.23916937]
[1765117620865,1e-08,129.09,129.07,0.5]
[1765117621163,1e-08,129.18,129.13,16.308864]
[1765117621369,1e-08,129.18,129.13,10.12]
[1765117621666,0.69000001,129.18,129.1,27.11076684]
[1765117621884,8.80994492,129.17,129.1,7.74593338]
[1765117622046,16.308864,129.14,129.08,7.74655812]
[1765117622254,16.308864,129.14,128.93,33.55992914]
[1765117622255,8.80994492,129.12,129.04,7.74898301]
[1765117622568,16.308864,129.09,128.99,10.12]
[1765117622747,0.69,129.08,129.0,27.13178294]
[1765117623337,0.69,129.12,129.01,0.5]
[1765117623535,0.5,129.15,129.04,8.80994492]
[1765117623742,0.69,129.16,129.08,16.308864]
[1765117624239,1e-08,129.18,129.09,25.61880892]
[1765117624652,1e-08,129.18,129.1,0.5]
[1765117625180,1e-08,129.18,129.12,16.308864]
[1765117625378,0.69,129.17,129.11,27.10866702]
[1765117625552,16.308864,129.16,129.11,7.74533343]
[1765117625741,0.5,129.15,129.1,27.11064724]
[1765117625942,1.19,129.16,129.1,7.74581378]
[1765117626146,17.498864,129.16,129.08,19.36760856]
[1765117626345,17.498864,129.16,129.1,7.74589355]
[1765117626346,0.69,129.15,129.1,7.74589355]
[1765117626578,0.5,129.14,129.06,19.37063373]
[1765117626785,0.5,129.14,129.04,19.37359216]
[1765117626946,9.49994492,129.13,129.06,19.36958144]
[1765117627266,9.49994492,129.13,129.02,10.1]
[1765117627267,0.5,129.12,129.03,65.87615281]
[1765117627575,25.11880892,129.11,129.03,27.12547468]
[1765117627783,25.11880892,129.11,129.03,7.75013562]
[1765117627993,0.69,129.1,129.03,7.75013562]
[1765117628159,0.69,129.1,129.03,27.12547468]
[1765117628369,0.6,129.11,129.03,65.87615281]
[1765117628548,1.19,129.13,129.03,65.87615281]
[1765117628964,0.69,129.12,129.03,65.87615281]
[1765117629160,0.5,129.11,129.03,58.12601719]
[1765117629351,0.5,129.11,129.03,19.37533906]
[1765117629575,0.69,129.1,129.03,19.37533906]
[1765117630605,0.5,129.11,129.03,19.37533906]
[1765117630888,1e-08,129.18,129.05,25.11880892]
[1765117630889,0.69,129.17,129.05,25.11880892]
[1765117631096,0.69,129.17,129.07,27.11706824]
[1765117631097,0.5,129.16,129.07,27.11706824]
[1765117631459,0.69,129.15,129.07,65.85573717]
[1765117631796,0.5,129.14,129.07,65.85573717]
[1765117631972,0.69,129.15,129.07,65.85573717]
[1765117632351,0.5,129.14,129.07,27.11706824]
[1765117632657,0.5,129.14,129.07,7.74773378]
[1765117632658,8.80994492,129.13,129.07,7.74773378]
[1765117633005,0.5,129.12,129.07,27.11706824]
[1765117633164,1.19,129.13,129.03,0.5]
[1765117633353,0.69,129.13,129.05,16.308864]
[1765117633553,16.808864,129.16,129.05,16.308864]
[1765117633811,0.50000001,129.18,129.07,16.308864]
[1765117634104,0.69,129.17,129.08,10.04]
[1765117634256,0.5,129.16,129.08,10.04]
[1765117634459,8.80994492,129.15,129.02,114.67494028]
[1765117634795,8.80994492,129.15,129.02,75.92125869]
[1765117634796,0.5,129.14,129.02,75.92125869]
[1765117635095,8.80994492,129.13,129.02,75.92125869]
[1765117635294,0.5,129.12,129.02,75.92125869]
[1765117635486,16.308864,129.1,129.02,37.1675771]
[1765117635701,16.308864,129.1,129.02,27.1275771]
[1765117635876,0.69,129.09,129.02,27.1275771]
[1765117636576,0.69,129.09,129.02,65.88125869]
[1765117637310,0.69,129.09,128.98,65.8988239]
[1765117637496,8.80994492,129.08,128.98,65.8988239]
[1765117637704,8.80994492,129.08,128.98,27.13599007]
[1765117637896,16.308864,129.05,128.98,27.13599007]
[1765117638411,0.69,129.05,128.98,27.13599007]
[1765117638613,0.69,129.07,128.98,37.13599007]
[1765117638918,8.80994492,129.06,128.98,27.13599007]
[1765117639091,8.80994492,129.06,128.95,27.14230321]
[1765117639279,0.69,129.05,128.95,27.14230321]
[1765117639878,0.69,129.05,128.95,65.91702209]
[1765117640820,0.5,129.11,128.98,16.308864]
[1765117640985,0.68,129.11,129.0,16.308864]
[1765117641310,0.68,129.11,129.01,65.88636538]
[1765117641676,0.5,129.1,129.01,65.88636538]
[1765117641991,8.80994492,129.09,129.01,65.88636538]
[1765117642178,0.5,129.11,129.02,0.5]
[1765117642381,0.68,129.12,129.04,16.308864]
[1765117642604,1e-08,129.18,129.05,9.98]
[1765117642605,1.18,129.15,129.05,9.98]
[1765117642812,1.18,129.15,129.05,10.48]
[1765117642813,0.68,129.15,129.05,10.48]
[1765117642978,0.68,129.17,129.06,0.5]
[1765117643194,0.68,129.17,129.09,65.84553411]
[1765117643392,1e-08,129.18,129.1,9.98]
[1765117643936,0.68000001,129.18,129.09,65.84553411]
[1765117644112,9.30994492,129.17,129.09,65.84553411]
[1765117644295,25.61880892,129.17,129.09,27.11286698]
[1765117644496,16.308864,129.14,129.09,27.11286698]
[1765117644812,9.30994492,129.13,129.09,7.74653342]
[1765117645012,9.98994492,129.13,129.09,7.74653342]
[1765117645215,0.68,129.12,129.05,46.49126616]
[1765117645407,0.5,129.11,129.05,65.86360246]
[1765117645616,9.30994492,129.11,129.05,27.12127082]
[1765117645826,0.68,129.1,129.05,27.12127082]
[1765117646618,8.80994492,129.13,129.05,27.62127082]
[1765117646619,0.68,129.13,129.05,27.62127082]
[1765117646955,1.18,129.13,129.05,66.36594342]
[1765117647107,0.68,129.13,129.05,66.36594342]
[1765117647427,0.5,129.14,129.06,16.808864]
[1765117647600,1e-08,129.18,129.1,16.308864]
[1765117648110,1e-08,129.18,129.1,16.808864]
[1765117648300,1e-08,129.18,129.11,0.5]
[1765117648508,1e-08,129.18,129.12,26.248864]
[1765117648903,1e-08,129.18,129.15,16.308864]
[1765117649231,1e-08,129.18,129.16,7.74233508]
[1765117649420,14.57136401,129.27,129.16,27.0981728]
[1765117649628,8.80994492,129.26,129.17,9.92]
[1765117649828,7.93379531,129.31,129.17,9.92]
[1765117650529,8.80994492,129.3,129.17,9.92]
[1765117650751,8.80994492,129.3,129.16,65.80984824]
[1765117650916,8.80994492,129.3,129.16,75.72984824]
[1765117651115,8.80994492,129.3,129.16,27.0981728]
[1765117651322,8.80994492,129.28,129.16,27.0981728]
[1765117651645,8.80994492,129.24,129.16,27.0981728]
[1765117651934,8.80994492,129.24,129.15,7.74291266]
[1765117652142,8.80994492,129.2,129.12,7.7442116]
[1765117652318,8.80994492,129.2,129.1,7.74546721]
[1765117652641,0.68,129.26,129.15,7.74258029]
[1765117652842,9.48994492,129.25,129.15,27.09991672]
[1765117653210,8.80994492,129.23,129.15,27.09991672]
[1765117654240,9.30994492,129.25,129.15,27.09991672]
[1765117654617,9.30994492,129.25,129.15,65.81458958]